bitfinex-derivatives/quotes_ETHF0:USTF0_20240930
["timestamp","ask_amount","ask_price","bid_price","bid_amount"]
[1727708446429,2.7778,2614.1,2613.4,3.5772]
[1727708446631,0.38259,2613.9,2613.6,0.38263]
[1727708446836,0.4052,2613.8,2613.6,0.38263]
[1727708447041,0.8012,2613.8,2613.6,0.38263]
[1727708449132,0.8012,2613.8,2613.4,3.2078]
[1727708449531,0.8012,2613.8,2612.9,5.5978]
[1727708449532,4.69245149,2613.8,2612.9,5.5978]
[1727708449837,1.50125149,2613.7,2613.4,3.2078]
[1727708450140,0.3879,2613.6,2613.4,3.2078]
[1727708450348,0.3879,2613.6,2613.5,2.77264]
[1727708450833,0.3879,2613.6,2613.5,2.39]
[1727708455647,0.3879,2613.6,2613.1,3.2078]
[1727708455841,1.88915149,2613.6,2613.1,3.2078]
[1727708456037,2.27178149,2613.6,2613.3,0.38266]
[1727708456237,0.38264,2613.5,2613.3,0.38267]
[1727708456448,1.50125149,2613.5,2613.3,0.38267]
[1727708456641,1.50125149,2613.5,2613.1,7.36333509]
[1727708456642,0.3684,2613.4,2613.1,7.36333509]
[1727708456841,0.3684,2613.4,2613.2,0.38268]
[1727708456842,0.3881,2613.3,2613.2,0.38268]
[1727708457646,0.3881,2613.3,2613.2,2.77268]
[1727708460351,0.3879,2613.6,2613.2,6.59908]
[1727708460665,0.3725,2613.9,2613.8,0.3826]
[1727708460943,0.7452,2613.9,2613.8,0.3826]
[1727708461938,0.3727,2613.9,2613.8,5.9804]
[1727708462142,2.47679521,2614.4,2614.1,0.38255]
[1727708462143,1.87375149,2614.2,2614.1,0.38255]
[1727708462352,2.24645149,2614.2,2614.1,0.38255]
[1727708462646,1.50125149,2614.5,2614.4,0.38251]
[1727708462837,1.50125149,2614.6,2614.4,0.38251]
[1727708463957,0.3727,2614.7,2614.5,6.42357364]
[1727708464145,0.3727,2614.7,2614.6,0.38248]
[1727708464642,1.50125149,2615.1,2614.8,0.38245]
[1727708464846,1.87955149,2615.2,2614.9,2.39]
[1727708465038,1.87955149,2615.2,2614.9,6.47115897]
[1727708465439,0.3783,2615.2,2615.1,2.39]
[1727708465648,0.3783,2615.2,2615.1,2.77241]
[1727708465844,1.50125149,2615.6,2615.1,10.37338985]
[1727708466040,3.2078,2616.0,2615.8,0.3823]
[1727708466041,1.50125149,2616.0,2615.8,0.3823]
[1727708466245,2.30605149,2616.2,2615.9,2.39]
[1727708466441,1.99049094,2616.5,2616.1,5.98006]
[1727708466442,1.50125149,2616.5,2616.1,5.98006]
[1727708466646,1.50125149,2616.6,2616.4,2.39]
[1727708466846,5.49965149,2616.7,2616.4,2.39]
[1727708467249,5.49965149,2616.7,2615.8,3.2078]
[1727708467250,0.3822,2616.5,2616.2,2.39]
[1727708467446,3.9984,2616.7,2615.8,3.2078]
[1727708467658,3.9984,2616.7,2616.0,2.39]
[1727708467954,5.49965149,2616.7,2616.0,2.39]
[1727708468156,0.38219,2616.6,2616.0,2.39]
[1727708468352,0.38222,2616.4,2616.0,2.39]
[1727708468551,3.2078,2616.4,2615.8,2.39]
[1727708468753,0.38225,2616.2,2615.8,2.39]
[1727708469152,0.3778,2616.1,2615.8,2.39]
[1727708469453,0.38228,2616.0,2615.8,2.39]
[1727708469750,0.3778,2616.1,2615.6,2.39]
[1727708469751,0.3999,2615.9,2615.6,2.39]
[1727708469952,3.2078,2615.8,2615.3,2.39]
[1727708470143,3.2078,2615.8,2615.1,2.39]
[1727708470144,0.38235,2615.5,2615.1,2.39]
[1727708470348,3.2078,2615.8,2615.1,2.39]
[1727708470349,0.38238,2615.3,2615.1,2.39]
[1727708470749,0.38237,2615.4,2615.1,2.39]
[1727708470944,3.2078,2615.8,2615.1,2.39]
[1727708471160,0.38234,2615.6,2615.1,2.39]
[1727708471657,3.2078,2615.8,2615.0,3.80376873]
[1727708471853,0.3778,2615.5,2615.0,3.80376873]
[1727708472354,0.38238,2615.3,2615.0,3.80376873]
[1727708472657,0.3778,2615.5,2615.0,3.80376873]
[1727708472857,0.3824,2615.2,2615.0,3.80376873]
[1727708473056,0.3778,2615.5,2615.0,3.80376873]
[1727708473057,0.38239,2615.3,2615.0,3.80376873]
[1727708473255,0.3778,2615.5,2615.0,0.86376873]
[1727708473256,0.38241,2615.1,2615.0,0.86376873]
[1727708473459,4.20641,2615.1,2615.0,0.86376873]
[1727708474049,10.20641,2615.1,2615.0,0.86376873]
[1727708474255,0.38245,2614.8,2614.7,0.8640175]
[1727708476062,0.38245,2614.8,2614.6,2.28003967]
[1727708476561,0.95604,2615.1,2614.6,2.28003967]
[1727708476750,3.2078,2615.1,2614.6,2.28003967]
[1727708476953,0.95592,2615.4,2614.9,0.38244]
[1727708476954,0.3824,2615.2,2614.9,0.38244]
[1727708477362,0.3778,2615.5,2614.8,3.2078]
[1727708477363,0.38243,2615.0,2614.8,3.2078]
[1727708477859,3.5818,2615.4,2614.8,3.2078]
[1727708478159,0.75637,2615.4,2615.1,0.38239]
[1727708478361,0.38238,2615.3,2615.0,0.38242]
[1727708478550,0.75637,2615.4,2615.1,0.3824]
[1727708478855,0.75637,2615.4,2615.0,2.94]
[1727708478856,0.38239,2615.3,2615.0,3.32241]
[1727708479056,0.3778,2615.5,2615.1,0.38241]
[1727708479257,0.3778,2615.5,2615.0,2.94]
[1727708479462,0.38237,2615.4,2615.2,0.38239]
[1727708479966,0.38237,2615.4,2615.1,3.2078]
[1727708479967,0.38237,2615.4,2615.1,3.5902]
[1727708480357,0.76016,2615.5,2615.3,0.38238]
[1727708480558,4.172,2616.0,2615.1,3.2078]
[1727708480559,3.2078,2616.0,2615.1,3.2078]
[1727708480854,0.38233,2615.7,2615.5,0.38234]
[1727708481062,0.3847,2615.9,2615.3,0.3756]
[1727708481267,0.38233,2615.7,2615.5,0.38235]
[1727708481657,0.38234,2615.6,2615.4,7.62255732]
[1727708482467,0.38234,2615.6,2615.5,0.38235]
[1727708482658,0.38234,2615.6,2615.4,7.62255732]
[1727708482958,0.38232,2615.7,2615.6,0.38233]
[1727708483353,0.3847,2615.9,2615.6,0.38233]
[1727708483556,0.38231,2615.8,2615.6,0.38233]
[1727708483759,0.38232,2615.7,2615.6,0.38233]
[1727708484158,0.38234,2615.6,2615.5,0.38234]
[1727708484566,0.3847,2615.9,2615.4,7.24020732]
[1727708484779,0.38233,2615.7,2615.6,0.38233]
[1727708485159,0.3847,2615.9,2615.6,0.38233]
[1727708485364,0.38232,2615.7,2615.6,0.38233]
[1727708485669,0.3847,2615.9,2615.6,0.38233]
[1727708485670,0.38232,2615.8,2615.6,0.38233]
[1727708486061,0.38232,2615.8,2615.7,0.38232]
[1727708486262,0.38232,2615.7,2615.6,0.38233]
[1727708486763,0.38232,2615.8,2615.6,0.38233]
[1727708487367,0.38232,2615.8,2615.7,0.38232]
[1727708488259,0.38232,2615.8,2615.4,7.24020732]
[1727708488260,0.38231,2615.8,2615.4,7.24020732]
[1727708488572,1.34046,2615.9,2615.5,0.38234]
[1727708488873,0.3847,2615.9,2615.4,7.24020732]
[1727708489067,0.95579,2615.8,2615.4,3.2078]
[1727708489270,0.38235,2615.6,2615.4,3.59015]
[1727708489568,0.38235,2615.5,2615.4,3.59015]
[1727708489958,0.95579,2615.8,2615.4,3.2078]
[1727708489959,0.38234,2615.6,2615.4,3.2078]
[1727708490163,0.38234,2615.6,2615.4,3.59016]
[1727708490164,0.38235,2615.6,2615.4,3.59016]
[1727708490464,0.3847,2615.9,2615.5,0.38235]
[1727708490773,0.38234,2615.6,2615.4,3.59015]
[1727708490971,0.38234,2615.6,2615.5,0.38235]
[1727708491473,0.3847,2615.9,2615.4,3.2078]
[1727708491769,0.95579,2615.8,2615.5,0.38234]
[1727708491970,0.3847,2615.9,2615.4,3.2078]
[1727708492167,0.38233,2615.7,2615.6,0.38233]
[1727708492371,0.3847,2615.9,2615.4,3.2078]
[1727708492561,1.34046,2615.9,2615.5,0.38234]
[1727708492766,1.34046,2615.9,2615.4,3.2078]
[1727708492767,0.3847,2615.9,2615.4,3.2078]
[1727708492959,0.95588,2615.6,2615.1,0.3824]
[1727708493172,1.33823,2615.5,2615.1,0.3824]
[1727708493474,1.33823,2615.5,2614.9,0.3927]
[1727708493475,0.38241,2615.1,2615.0,0.38242]
[1727708493671,1.34474,2615.4,2614.9,0.3927]
[1727708493864,0.3824,2615.2,2615.0,0.38242]
[1727708494066,0.78159,2615.3,2615.1,0.3824]
[1727708494269,0.38239,2615.2,2615.1,0.3824]
[1727708494568,0.38239,2615.2,2615.0,2.39]
[1727708494569,0.38239,2615.2,2615.0,2.77242]
[1727708495173,0.3824,2615.2,2615.0,2.77242]
[1727708495373,0.3824,2615.2,2615.1,0.38241]
[1727708495575,0.3824,2615.2,2615.0,2.77242]
[1727708495975,0.3824,2615.2,2615.0,2.77241]
[1727708496280,0.3824,2615.2,2615.1,0.38241]
[1727708496771,0.3992,2615.3,2615.2,0.38239]
[1727708496975,0.3992,2615.3,2615.2,2.77239]
[1727708497274,0.76186,2615.5,2615.2,2.39]
[1727708497475,0.76186,2615.5,2615.3,0.38237]
[1727708497874,0.76186,2615.5,2615.2,2.77238]
[1727708497875,0.38238,2615.4,2615.2,2.77238]
[1727708498070,0.3795,2615.5,2615.2,2.77238]
[1727708498071,0.3795,2615.5,2615.2,2.39]
[1727708498275,0.3795,2615.5,2615.0,5.98022]
[1727708498276,0.38241,2615.1,2615.0,5.98022]
[1727708499279,0.38241,2615.1,2614.7,0.401]
[1727708499280,9.824,2615.1,2614.8,0.38244]
[1727708499481,2.11117,2615.0,2614.4,3.6114]
[1727708499680,2.11117,2615.0,2614.7,0.38246]
[1727708499894,0.38245,2614.9,2614.5,2.39]
[1727708500090,0.38245,2614.9,2614.7,0.38246]
[1727708500388,0.75932,2615.0,2614.9,0.38244]
[1727708501386,0.7514,2615.3,2615.0,0.38241]
[1727708501387,0.38241,2615.1,2615.0,0.38241]
[1727708501593,0.3824,2615.2,2615.1,0.3824]
[1727708501892,0.38241,2615.1,2615.0,2.77242]
[1727708502088,0.38241,2615.1,2615.0,2.39]
[1727708502695,0.38241,2615.1,2615.0,2.77242]
[1727708503588,0.38241,2615.1,2615.0,2.39]
[1727708503784,0.38241,2615.1,2615.0,2.77242]
[1727708505387,0.38241,2615.1,2615.0,2.39]
[1727708506295,0.38241,2615.1,2615.0,2.77242]
[1727708506491,0.38241,2615.1,2615.0,2.39]
[1727708506697,0.38241,2615.1,2615.0,5.5978]
[1727708506899,0.38241,2615.1,2615.0,5.98022]
[1727708507193,0.38241,2615.1,2615.0,5.5978]
[1727708507696,0.77809,2615.3,2615.0,5.5978]
[1727708507891,0.77809,2615.3,2615.0,5.9885]
[1727708508091,0.38239,2615.2,2615.1,0.38241]
[1727708508290,2.29865149,2615.6,2615.4,0.38235]
[1727708508501,0.38235,2615.5,2615.4,0.38236]
[1727708508690,1.17975,2615.6,2615.4,0.38236]
[1727708508893,0.3709,2615.7,2615.5,2.39]
[1727708509087,0.3709,2615.7,2615.6,0.38234]
[1727708509088,0.75323,2615.7,2615.6,0.38234]
[1727708509400,0.75323,2615.7,2615.5,2.77234]
[1727708509589,0.38234,2615.6,2615.5,0.38234]
[1727708509794,0.3709,2615.7,2615.5,0.38234]
[1727708510100,0.3709,2615.7,2615.5,0.38235]
[1727708510101,0.38234,2615.6,2615.5,0.38235]
[1727708510289,0.38234,2615.6,2615.4,0.76115]
[1727708510489,0.3709,2615.7,2615.5,0.38234]
[1727708510699,0.38235,2615.5,2615.4,0.76116]
[1727708510888,0.38234,2615.6,2615.5,0.38235]
[1727708511293,0.38234,2615.6,2615.4,0.3788]
[1727708511499,0.3709,2615.7,2615.4,0.3788]
[1727708511801,0.3709,2615.7,2615.5,0.38235]
[1727708511802,0.75323,2615.7,2615.5,0.38235]
[1727708511991,0.38234,2615.6,2615.5,0.38235]
[1727708512193,0.3709,2615.7,2615.4,0.3788]
[1727708512499,0.38235,2615.5,2615.4,0.76116]
[1727708512691,0.38234,2615.6,2615.5,0.38234]
[1727708512888,1.88356149,2615.8,2615.6,0.38234]
[1727708513087,0.3976,2615.9,2615.8,0.38231]
[1727708513088,1.89885149,2615.9,2615.8,0.38231]
[1727708513408,1.50125149,2615.9,2615.8,2.77231]
[1727708513593,0.38229,2615.9,2615.8,2.77231]
[1727708515603,0.38229,2615.9,2615.8,2.39]
[1727708516196,0.38229,2615.9,2615.8,2.77231]
[1727708516798,1.88885149,2616.0,2615.6,5.5978]
[1727708517092,0.38232,2615.7,2615.6,3.2078]
[1727708520600,0.95577,2615.9,2615.6,3.2078]
[1727708520601,1.50125149,2615.9,2615.6,3.2078]
[1727708520904,0.38232,2615.8,2615.7,0.38232]
[1727708521604,1.88357149,2615.8,2615.7,0.38232]
[1727708522002,0.38232,2615.7,2615.6,3.59013]
[1727708522200,1.33813,2615.7,2615.4,0.3788]
[1727708522400,0.7633,2615.6,2615.4,0.3788]
[1727708522599,0.7633,2615.6,2615.4,0.76116]
[1727708522600,0.38235,2615.5,2615.4,0.76116]
[1727708522909,0.77715,2615.5,2615.4,0.76116]
[1727708523110,0.77715,2615.5,2615.4,0.3788]
[1727708523295,0.38236,2615.4,2615.3,0.38237]
[1727708523501,0.38236,2615.4,2615.1,3.39035488]
[1727708523502,0.38239,2615.2,2615.1,3.1536]
[1727708523807,5.32525149,2615.4,2614.9,1.00035488]
[1727708524010,0.7633,2615.1,2614.6,6.97935488]
[1727708524305,0.38244,2614.9,2614.7,0.38246]
[1727708524498,1.88465149,2615.0,2614.8,0.38244]
[1727708524698,1.88465149,2615.0,2614.7,0.38246]
[1727708525001,0.38244,2614.9,2614.6,5.979]
[1727708525200,0.38246,2614.8,2614.7,0.38246]
[1727708525403,1.88465149,2615.0,2614.6,5.979]
[1727708525714,1.88465149,2615.0,2614.4,0.3825]
[1727708525715,0.38249,2614.6,2614.4,0.3825]
[1727708525903,0.38247,2614.7,2614.5,0.38249]
[1727708526207,0.38249,2614.6,2614.4,2.7725]
[1727708526510,0.38248,2614.7,2614.5,0.38249]
[1727708526706,0.38251,2614.5,2614.3,0.38252]
[1727708527007,0.76592,2614.4,2614.2,0.38253]
[1727708527199,0.3834,2614.4,2614.1,2.7734]
[1727708527399,0.3834,2614.4,2614.3,0.38253]
[1727708529104,0.3834,2614.4,2614.3,2.77253]
[1727708529304,0.3834,2614.4,2614.3,6.59733]
[1727708529511,5.29894,2615.0,2614.3,7.21515488]
[1727708529711,0.38245,2614.9,2614.7,0.38245]
[1727708530206,0.7739,2615.0,2614.9,0.38244]
[1727708530401,0.3955,2615.0,2614.9,0.38244]
[1727708530606,0.3824,2615.2,2614.9,2.39]
[1727708530805,0.38241,2615.1,2614.9,2.77243]
[1727708531202,2.26195149,2615.3,2614.8,3.2078]
[1727708531403,0.38242,2615.1,2614.9,0.38243]
[1727708531803,2.26195149,2615.3,2614.9,0.38243]
[1727708532101,0.3824,2615.2,2615.0,0.38241]
[1727708532303,2.26992149,2615.4,2615.2,0.38239]
[1727708532610,2.26993149,2615.4,2615.2,0.38239]
[1727708532812,0.3863,2615.4,2615.1,0.3824]
[1727708533007,0.38238,2615.3,2615.1,0.3824]
[1727708533406,0.3863,2615.4,2615.2,0.38239]
[1727708533612,0.38238,2615.3,2615.1,2.39]
[1727708533803,2.26940149,2615.6,2615.3,0.38238]
[1727708534009,1.88357149,2615.7,2615.5,0.38235]
[1727708534217,1.50125149,2615.7,2615.5,2.77235]
[1727708534416,2.28917149,2615.8,2615.5,2.77235]
[1727708534617,0.38233,2615.7,2615.5,2.39]
[1727708534817,0.38234,2615.6,2615.4,3.2078]
[1727708535014,0.38234,2615.6,2615.4,3.59016]
[1727708535211,0.38236,2615.5,2615.2,0.78409]
[1727708535521,0.38237,2615.4,2615.2,0.78409]
[1727708535719,1.50125149,2615.7,2615.3,2.39]
[1727708536017,1.90685149,2615.8,2615.4,3.2078]
[1727708536322,0.4056,2615.8,2615.7,0.38232]
[1727708536723,1.40544907,2615.8,2615.6,0.38233]
[1727708537021,1.40544907,2615.8,2615.4,3.2078]
[1727708537208,0.99984907,2615.7,2615.5,0.38234]
[1727708537520,0.99984907,2615.7,2615.6,0.38234]
[1727708537720,1.78775907,2615.8,2615.5,0.38234]
[1727708538016,0.38234,2615.6,2615.4,0.38236]
[1727708538221,0.38236,2615.5,2615.3,8.0116353]
[1727708538416,0.99984907,2615.7,2615.3,7.6292653]
[1727708538612,0.99984907,2615.7,2615.3,3.2078]
[1727708538920,0.38235,2615.5,2615.3,3.59018]
[1727708539322,0.38235,2615.5,2615.3,3.2078]
[1727708539523,1.38219907,2615.6,2615.4,0.38236]
[1727708539720,0.38235,2615.5,2615.4,0.38236]
[1727708540014,1.38218907,2615.6,2615.4,0.38236]
[1727708540820,0.38236,2615.4,2615.3,3.2078]
[1727708541426,0.38237,2615.4,2615.3,0.38238]
[1727708541617,2.15400907,2615.5,2615.3,0.38238]
[1727708541919,2.15400907,2615.5,2615.2,0.4017]
[1727708541920,1.38220907,2615.5,2615.2,3.6095]
[1727708542128,0.99984907,2615.6,2615.5,0.38235]
[1727708542426,1.38217907,2615.7,2615.3,6.61448608]
[1727708542721,1.3822338,2615.7,2615.5,0.38234]
[1727708542921,1.3822336,2615.7,2615.6,0.38234]
[1727708543123,0.9999036,2615.7,2615.6,0.38234]
[1727708543423,2.67865149,2615.8,2615.6,0.38232]
[1727708543424,1.7878136,2615.8,2615.6,0.38232]
[1727708543627,0.78791,2615.8,2615.7,0.38232]
[1727708544222,0.78791,2615.8,2615.5,5.5978]
[1727708544223,0.4056,2615.8,2615.5,3.2078]
[1727708544522,0.38234,2615.6,2615.5,3.2078]
[1727708544827,0.9999036,2615.6,2615.0,1.40475488]
[1727708545027,0.38241,2615.2,2615.0,0.38241]
[1727708545222,0.38241,2615.1,2615.0,0.38242]
[1727708545415,0.74961,2615.1,2615.0,0.38242]
[1727708545723,0.3672,2615.1,2615.0,0.38242]
[1727708546021,0.3672,2615.1,2614.9,0.3967]
[1727708546322,0.74962,2615.1,2614.9,0.77912]
[1727708546522,0.3672,2615.1,2614.9,0.77912]
[1727708546724,0.38242,2615.0,2614.9,0.77912]
[1727708546917,0.74962,2615.1,2614.9,0.77912]
[1727708547323,0.3672,2615.1,2614.9,0.77912]
[1727708547723,1.3671036,2615.1,2614.9,0.38243]
[1727708548028,1.7495236,2615.1,2614.9,0.38243]
[1727708548420,0.38243,2615.0,2614.8,0.38244]
[1727708548724,1.3671036,2615.1,2614.7,2.39]
[1727708549030,0.38243,2615.0,2614.7,2.39]
[1727708549329,0.38243,2615.0,2614.9,0.38244]
[1727708549529,1.7495136,2615.1,2615.0,0.38242]
[1727708549725,1.7495136,2615.1,2614.9,0.38243]
[1727708550029,0.38242,2615.0,2614.9,0.38243]
[1727708550521,0.38242,2615.0,2614.8,3.2078]
[1727708550727,0.38244,2614.9,2614.8,0.38245]
[1727708550924,0.3891,2615.0,2614.9,0.38244]
[1727708551325,0.3891,2615.0,2614.7,2.39]
[1727708551517,0.7812,2615.0,2614.7,2.39]
[1727708551722,0.7812,2615.0,2614.9,0.38244]
[1727708551925,1.3671036,2615.1,2615.0,0.38242]
[1727708552219,1.3823036,2615.2,2615.0,0.38241]
[1727708552527,1.3823136,2615.1,2615.0,0.38241]
[1727708553223,0.9999036,2615.1,2614.9,2.39]
[1727708553425,0.38242,2615.0,2614.9,2.77243]
[1727708555625,1.3822936,2615.3,2615.1,0.38241]
[1727708555821,1.3822936,2615.3,2615.2,0.38239]
[1727708556022,1.3822836,2615.3,2615.2,0.38239]
[1727708556322,1.3947036,2615.4,2614.9,2.39]
[1727708556531,0.38239,2615.3,2615.2,0.38239]
[1727708557332,0.38239,2615.3,2615.2,0.76499]
[1727708558123,0.9999036,2615.4,2615.3,0.38238]
[1727708558322,0.9999036,2615.7,2615.3,7.16996]
[1727708558631,2.1266036,2615.9,2615.6,2.39]
[1727708558830,1.509,2615.9,2615.7,0.75351]
[1727708559027,1.1267,2615.9,2615.7,0.3712]
[1727708559326,4.70905149,2616.2,2616.1,0.38226]
[1727708559327,0.9999036,2616.2,2616.1,0.38226]
[1727708559529,1.3821336,2616.4,2616.1,2.39]
[1727708560230,0.9999036,2616.4,2616.1,2.39]
[1727708560420,0.9999036,2616.4,2616.1,2.77226]
[1727708560622,0.9999036,2616.4,2616.1,2.39]
[1727708560821,0.9999036,2616.4,2616.1,2.77225]
[1727708561237,1.3821236,2616.4,2616.1,2.39]
[1727708561422,0.9999036,2616.4,2616.1,2.77226]
[1727708561728,1.3670036,2616.5,2616.1,2.39]
[1727708561921,1.3821236,2616.4,2616.1,2.39]
[1727708562121,1.3821236,2616.4,2616.0,0.38228]
[1727708562323,1.3670036,2616.5,2616.1,0.38226]
[1727708562529,1.3670036,2616.5,2615.9,2.39]
[1727708562530,1.7492136,2616.5,2615.9,2.39]
[1727708562724,1.7492136,2616.5,2616.1,0.38225]
[1727708562921,1.3670036,2616.5,2615.9,2.77229]
[1727708563232,0.38224,2616.3,2615.9,2.77229]
[1727708563432,0.38225,2616.2,2615.9,2.77229]
[1727708563644,0.38224,2616.3,2615.9,2.39]
[1727708563933,0.38224,2616.3,2616.0,0.38228]
[1727708564133,0.38225,2616.3,2615.9,2.77228]
[1727708564331,0.38226,2616.2,2615.9,2.77228]
[1727708565029,0.9999036,2616.4,2615.9,2.39]
[1727708565232,0.3671,2616.5,2615.9,2.39]
[1727708565233,0.38224,2616.3,2616.0,0.38226]
[1727708566135,0.38225,2616.2,2616.0,0.38226]
[1727708566539,1.3670036,2616.5,2615.9,2.39]
[1727708566540,0.38224,2616.3,2615.9,2.39]
[1727708566832,0.38224,2616.3,2616.1,0.38226]
[1727708567926,0.38226,2616.2,2616.0,0.38227]
[1727708568133,2.3225436,2616.5,2615.9,2.39]
[1727708568435,0.75826,2616.1,2616.0,0.38227]
[1727708568736,0.376,2616.1,2616.0,0.38227]
[1727708569230,0.75826,2616.1,2615.9,0.38228]
[1727708569434,0.3697,2616.0,2615.9,0.38228]
[1727708569830,0.3697,2616.0,2615.8,3.2078]
[1727708569831,0.75198,2616.0,2615.8,3.2078]
[1727708570027,0.38229,2615.9,2615.8,3.2078]
[1727708570227,0.38229,2615.9,2615.8,3.59011]
[1727708570228,0.3867,2615.9,2615.8,3.59011]
[1727708572937,0.76899,2615.9,2615.8,3.59011]
[1727708573133,0.76899,2615.9,2615.8,3.2078]
[1727708573338,0.76899,2615.9,2615.3,1.35954]
[1727708573339,0.3867,2615.9,2615.4,3.2078]
[1727708573529,0.38231,2615.8,2615.4,3.2078]
[1727708573729,0.38231,2615.8,2615.6,0.38232]
[1727708573935,0.38231,2615.8,2615.7,0.38232]
[1727708575543,0.3867,2615.9,2615.4,3.2078]
[1727708575732,1.34245,2615.9,2615.4,3.2078]
[1727708575942,0.38233,2615.7,2615.6,0.38233]
[1727708576737,0.3867,2615.9,2615.5,2.39]
[1727708576942,0.3867,2615.9,2615.8,0.38231]
[1727708577141,1.3696036,2616.0,2615.9,0.38229]
[1727708577446,0.3697,2616.0,2615.9,0.38229]
[1727708578546,0.75198,2616.0,2615.9,0.38229]
[1727708578740,0.75198,2616.0,2615.8,0.378]
[1727708578741,1.3696036,2616.0,2615.8,0.378]
[1727708578941,0.38229,2615.9,2615.8,0.38229]
[1727708579248,0.38231,2615.8,2615.7,0.38231]
[1727708579645,0.3823,2615.9,2615.8,0.3823]
[1727708580649,0.3823,2615.9,2615.8,0.38229]
[1727708582244,0.3697,2616.0,2615.6,3.99246826]
[1727708582245,1.3696036,2616.0,2615.6,3.99246826]
[1727708582446,0.38235,2615.5,2615.4,3.59015]
[1727708583259,0.38235,2615.5,2615.4,3.59016]
[1727708583441,0.78405,2615.5,2615.4,0.38236]
[1727708584050,0.3802,2615.6,2615.5,0.38235]
[1727708584051,0.76255,2615.6,2615.5,0.38235]
[1727708584649,0.3802,2615.6,2615.4,0.3847]
[1727708584847,0.38235,2615.5,2615.4,0.76706]
[1727708586162,0.4017,2615.7,2615.4,4.2079]
[1727708586353,0.4017,2615.7,2615.6,0.38234]
[1727708586751,0.78402,2615.7,2615.6,0.38234]
[1727708588157,0.3823,2615.9,2615.8,0.38231]
[1727708588352,0.3823,2615.9,2615.6,3.2078]
[1727708588353,1.7631936,2616.0,2615.9,0.38229]
[1727708588560,1.50125149,2616.2,2615.6,3.2078]
[1727708588561,0.9999036,2616.2,2615.8,2.39]
[1727708588753,0.9999036,2616.2,2615.9,0.4036]
[1727708588950,0.9999036,2616.2,2616.1,0.38226]
[1727708589446,0.9999036,2616.4,2616.3,0.38223]
[1727708589849,0.9999036,2616.5,2616.4,0.38222]
[1727708590154,0.3822,2616.5,2616.3,0.78582]
[1727708590357,0.99882173,2616.4,2616.3,0.78582]
[1727708590554,0.99882173,2616.5,2616.4,0.38222]
[1727708590755,1.38102173,2616.5,2616.4,0.38222]
[1727708591454,1.38102173,2616.5,2616.3,0.78582]
[1727708592059,1.38102173,2616.5,2616.4,0.38222]
[1727708592359,1.38102173,2616.5,2616.3,0.4036]
[1727708592549,0.99882173,2616.4,2616.0,2.7907]
[1727708592752,0.99882173,2616.4,2616.2,0.38224]
[1727708592753,0.38224,2616.3,2616.2,0.38224]
[1727708593151,0.38224,2616.3,2615.9,0.4002]
[1727708593152,3.8224,2616.3,2615.9,0.4002]
[1727708593349,0.38228,2616.0,2615.9,0.4002]
[1727708593553,0.38228,2616.0,2615.9,0.78249]
[1727708593749,0.38227,2616.1,2615.9,0.78248]
[1727708593953,0.38227,2616.1,2616.0,0.38228]
[1727708594454,0.38228,2616.0,2615.9,0.78248]
[1727708594961,0.95567,2616.1,2615.9,0.38229]
[1727708595162,0.38229,2616.0,2615.9,0.38229]
[1727708596063,1.40262173,2616.2,2616.1,0.38226]
[1727708596260,0.99882173,2616.4,2616.3,0.38223]
[1727708596461,1.50125149,2616.6,2616.3,2.39]
[1727708596462,0.99882173,2616.6,2616.3,2.39]
[1727708596765,0.99882173,2616.6,2616.5,0.3822]
[1727708597259,2.12878336,2616.7,2616.6,0.38219]
[1727708597455,1.12958,2616.7,2616.6,0.38219]
[1727708598056,0.7474,2616.7,2616.6,0.38219]
[1727708598260,1.37463975,2616.7,2616.6,2.77219]
[1727708598661,1.75680975,2616.7,2616.6,2.77219]
[1727708598861,1.75680975,2616.7,2616.6,0.38219]
[1727708599961,1.37463975,2616.7,2616.6,0.38219]
[1727708600163,1.75680975,2616.7,2616.6,0.38219]
[1727708600658,0.75747,2616.7,2616.6,0.38219]
[1727708600859,0.3753,2616.7,2616.4,3.5839]
[1727708601058,0.3822,2616.5,2616.4,0.75831]
[1727708601262,0.3822,2616.5,2616.4,0.75832]
[1727708601462,0.38223,2616.4,2616.3,0.38222]
[1727708601662,1.38196958,2616.5,2616.2,2.776]
[1727708601866,1.38196958,2616.5,2616.4,0.38222]
[1727708602166,0.99975958,2616.5,2616.2,2.776]
[1727708602361,0.99975958,2616.5,2616.4,0.38222]
[1727708602566,1.00016572,2616.6,2616.5,0.3822]
[1727708602766,1.38235572,2616.6,2616.5,0.3822]
[1727708603164,0.38219,2616.6,2616.5,0.3822]
[1727708603468,1.38231798,2616.6,2616.5,0.3822]
[1727708603667,1.38232092,2616.6,2616.5,0.3822]
[1727708603873,0.38219,2616.6,2616.5,0.3822]
[1727708605367,1.87655149,2616.7,2616.6,0.38219]
[1727708605368,2.25874149,2616.7,2616.6,0.38219]
[1727708605575,2.25873149,2616.7,2616.6,0.38219]
[1727708605875,0.75748,2616.7,2616.6,0.38219]
[1727708606265,0.3822,2616.6,2616.5,0.38219]
[1727708606466,1.3824252,2616.6,2616.5,0.38219]
[1727708607075,1.0002352,2616.6,2616.5,0.38219]
[1727708607458,1.3824252,2616.6,2616.5,0.38219]
[1727708608467,1.87655149,2616.7,2616.3,2.39]
[1727708608680,0.38222,2616.4,2616.3,0.38222]
[1727708609073,0.38225,2616.3,2616.2,0.38224]
[1727708609466,1.00004978,2616.4,2616.3,0.38223]
[1727708609770,1.38224978,2616.5,2616.4,0.3822]
[1727708610367,0.38223,2616.4,2616.3,0.38223]